fUSD/lending_fUSD_20260323
["ID","MTS","AMOUNT","RATE_DAILY","PERIOD"]
[408782026,1774248643258,-266.452,0.000159,2]
[408782027,1774248643268,-554.33626464,0.000159,2]
[408782028,1774248643278,-3778.60269019,0.0001596,2]
[408782029,1774248643287,-505.24689163,0.00015973,2]
[408782031,1774248643297,-1000.0,0.00015973,2]
[408782032,1774248643306,-1000.0,0.00015973,2]
[408782033,1774248643316,-823.896,0.00015973,2]
[408782034,1774248643326,-152.0,0.00015976,11]
[408782035,1774248643335,-251.59071974,0.0001599,2]
[408782036,1774248643345,-251.59071974,0.0001599,2]
[408782037,1774248643354,-251.59071974,0.0001599,2]
[408782038,1774248643364,-49121.62850217,0.00016,2]
[408782044,1774248645598,-1280.475,0.00016,2]
[408782046,1774248645610,-2852.99031331,0.00016,2]
[408782049,1774248645621,-500.0,0.00016,2]
[408782060,1774248645784,-13583.6,0.00016,2]
[408782061,1774248645796,-4072.00000002,0.00016,2]
[408782062,1774248645974,-915.15279018,0.00016,2]
[408782076,1774249192632,152.69,6.422e-05,2]
[408782077,1774249192830,152.69,8.027e-05,2]
[408782100,1774249657178,-152.69,9.633e-05,2]
[408782101,1774249737874,-400.0,0.000102,2]
[408782102,1774249737896,-172.6,0.00010301,2]
[408782103,1774249737918,-166.66,0.00010959,2]
[408782104,1774249737940,-166.66,0.0001111,2]
[408782105,1774249737963,-152.69,0.00011238,2]
[408782106,1774249737987,-166.66,0.0001126,2]
[408782107,1774249738010,-166.66,0.00011411,2]
[408782108,1774249738032,-166.66,0.00011561,2]
[408782109,1774249738053,-232.36970875,0.000117,2]
[408782110,1774249738074,-166.66,0.00011712,2]
[408782111,1774249738097,-150.0,0.000118,2]
[408782112,1774249738119,-200.0,0.00011888,2]
[408782122,1774249831741,-1676.56,0.00012217,2]
[408782124,1774249831774,-2194.67,0.00012363,2]
[408782126,1774249831785,-200.0,0.00012426,2]
[408782128,1774249831795,-1071.86,0.00012776,2]
[408782129,1774249831804,-152.69,0.00012843,2]
[408782130,1774249831822,-200.0,0.00012888,2]
[408782131,1774249831848,-150.4927,0.000133,2]
[408782132,1774249831858,-150.0,0.00013447,2]
[408782133,1774249831867,-150.0,0.00013447,2]
[408782134,1774249831878,-202.68616118,0.00013447,2]
[408782135,1774249831900,-26988.2711,0.00013573,2]
[408782136,1774249831915,-800.0,0.000136,4]
[408782137,1774249831925,-1200.0,0.0001362,2]
[408782138,1774249831937,-300.0,0.0001362,2]
[408782139,1774249831949,-19559.8112,0.00013621,2]
[408782141,1774249831960,-150.0,0.00013621,2]
[408782143,1774249831971,-1854.1925,0.00013622,2]
[408782145,1774249831981,-12178.8194,0.00013622,2]
[408782147,1774249831990,-2500.0,0.00013622,2]
[408782149,1774249832000,-2691.3899,0.00013622,2]
[408782151,1774249832009,-153.27466147,0.0001366,2]
[408782153,1774249832019,-474.66291581,0.0001366,2]
[408782155,1774249832028,-369.16220629,0.0001366,2]
[408782157,1774249832038,-1262.98011576,0.0001366,2]
[408782159,1774249832048,-4210.07462385,0.0001366,2]
[408782181,1774249833835,-154.01913171,0.0001366,2]
[408782182,1774249833844,-439.05514615,0.0001366,2]
[408782183,1774249833854,-273.32274274,0.00013673,2]
[408782184,1774249833863,-146.0529794,0.00013699,2]
[408782185,1774249833875,-250.7070206,0.00013699,2]
[408782186,1774249833884,-491.5847794,0.000137,5]
[408782187,1774249833897,-1208.4152206,0.000137,5]
[408782188,1774249833907,-151.0,0.00013719,2]
[408782189,1774249833916,-1000.0,0.0001372,2]
[408782190,1774249833926,-170.711,0.0001372,2]
[408782191,1774249833936,-1027.04953648,0.0001372,2]
[408782192,1774249833960,-831.42446352,0.0001372,2]
[408782193,1774249833970,-500.0,0.00013721,2]
[408782194,1774249833979,-500.0,0.00013721,2]
[408782195,1774249833989,-500.0,0.00013721,2]
[408782196,1774249833998,-500.0,0.00013721,2]
[408782197,1774249834007,-500.0,0.00013721,2]
[408782198,1774249834017,-315.9435173,0.00013721,2]
[408782199,1774249834026,-500.0,0.00013721,2]
[408782200,1774249834036,-500.0,0.00013721,2]
[408782201,1774249834045,-500.0,0.00013721,2]
[408782202,1774249834054,-500.0,0.00013721,2]
[408782203,1774249834064,-500.0,0.00013721,2]
[408782204,1774249834073,-500.0,0.00013721,2]
[408782205,1774249834083,-500.0,0.00013721,2]
[408782206,1774249834092,-500.0,0.00013721,2]
[408782207,1774249834101,-500.0,0.00013721,2]
[408782208,1774249834111,-500.0,0.00013721,2]
[408782209,1774249834121,-500.0,0.00013721,2]
[408782210,1774249834130,-500.0,0.00013721,2]
[408782211,1774249834140,-500.0,0.00013721,2]
[408782212,1774249834150,-500.0,0.00013721,2]
[408782213,1774249834159,-500.0,0.00013721,2]
[408782214,1774249834172,-500.0,0.00013721,2]
[408782215,1774249834182,-500.0,0.00013721,2]
[408782216,1774249834191,-500.0,0.00013721,2]
[408782217,1774249834201,-500.0,0.00013721,2]
[408782218,1774249834210,-500.0,0.00013721,2]
[408782219,1774249834221,-500.0,0.00013721,2]
[408782220,1774249834231,-500.0,0.00013721,2]
[408782221,1774249834240,-500.0,0.00013721,2]
[408782222,1774249834252,-500.0,0.00013721,2]
[408782223,1774249834261,-500.0,0.00013721,2]
[408782224,1774249834271,-500.0,0.00013721,2]
[408782225,1774249834281,-500.0,0.00013721,2]
[408782226,1774249834291,-500.0,0.00013721,2]
[408782227,1774249834300,-500.0,0.00013721,2]
[408782228,1774249834311,-500.0,0.00013721,2]
[408782229,1774249834320,-500.0,0.00013721,2]
[408782230,1774249834330,-500.0,0.00013721,2]
[408782231,1774249834340,-500.0,0.00013721,2]
[408782232,1774249834350,-500.0,0.00013721,2]
[408782233,1774249834359,-500.0,0.00013721,2]
[408782234,1774249834368,-500.0,0.00013721,2]
[408782235,1774249834377,-500.0,0.00013721,2]
[408782236,1774249834387,-500.0,0.00013721,2]
[408782237,1774249834398,-500.0,0.00013721,2]
[408782238,1774249834407,-500.0,0.00013721,2]
[408782239,1774249834417,-500.0,0.00013721,2]
[408782240,1774249834426,-500.0,0.00013721,2]
[408782241,1774249834436,-500.0,0.00013721,2]
[408782242,1774249834445,-500.0,0.00013721,2]
[408782243,1774249834454,-500.0,0.00013721,2]
[408782244,1774249834464,-500.0,0.00013721,2]
[408782245,1774249834473,-500.0,0.00013721,2]
[408782246,1774249834482,-500.0,0.00013721,2]
[408782247,1774249834492,-515.19557075,0.00013721,2]
[408782248,1774249834501,-500.0,0.00013721,2]
[408782249,1774249834511,-500.0,0.00013721,2]
[408782250,1774249834520,-500.0,0.00013721,2]
[408782251,1774249834529,-500.0,0.00013721,2]
[408782252,1774249834539,-500.0,0.00013721,2]
[408782253,1774249834548,-500.0,0.00013721,2]
[408782254,1774249834558,-500.0,0.00013721,2]
[408782255,1774249834567,-500.0,0.00013721,2]
[408782256,1774249834576,-500.0,0.00013721,2]
[408782257,1774249834585,-500.0,0.00013721,2]
[408782258,1774249834595,-338.46747617,0.00013721,2]
[408782259,1774249834604,-500.0,0.00013721,2]
[408782260,1774249834613,-250.74848111,0.00013721,2]
[408782261,1774249834622,-500.0,0.00013721,2]
[408782262,1774249834631,-500.0,0.00013721,2]
[408782263,1774249834640,-500.0,0.00013721,2]
[408782264,1774249834650,-500.0,0.00013721,2]
[408782265,1774249834659,-434.28277885,0.00013721,2]
[408782266,1774249834668,-16871.3157,0.0001376,2]
[408782267,1774249834678,-1000.0,0.0001376,2]
[408782268,1774249834687,-500.41700518,0.00013773,2]
[408782269,1774249834698,-500.0,0.00013773,2]
[408782270,1774249834707,-832.23,0.000138,2]
[408782271,1774249834716,-1190.21,0.000138,2]
[408782272,1774249834726,-463.48,0.000138,2]
[408782273,1774249834735,-872.85,0.000138,2]
[408782274,1774249834744,-785.45,0.000138,2]
[408782275,1774249834753,-582.99,0.000138,2]
[408782276,1774249834763,-2600.0,0.000138,5]
[408782277,1774249834772,-200.0,0.00013888,2]
[408782278,1774249834782,-979.16666667,0.00013889,2]
[408782279,1774249834791,-160.0,0.00013889,2]
[408782280,1774249834800,-3500.0,0.000139,5]
[408782281,1774249834809,-1262.98011572,0.00013909,2]
[408782282,1774249834818,-439.05514609,0.00013909,2]
[408782283,1774249834827,-501.0,0.00014,2]
[408782284,1774249834836,-2486.77142635,0.00014062,2]
[408782285,1774249834846,-700.0,0.00014082,2]
[408782286,1774249834855,-1262.98011572,0.00014158,2]
[408782287,1774249834865,-439.05514609,0.00014158,2]
[408782288,1774249834873,-921.0,0.00014313,5]
[408782289,1774249834882,-460.0754558,0.00014321,2]
[408782290,1774249834892,-900.0,0.00014356,2]
[408782291,1774249834901,-396.76,0.00014384,2]
[408782292,1774249834910,-1262.98011572,0.00014407,2]
[408782293,1774249834919,-439.05514609,0.00014407,2]
[408782294,1774249834928,-6008.0,0.0001453,2]
[408782295,1774249834937,-2466.0,0.0001453,2]
[408782296,1774249834946,-150.0,0.00014542,2]
[408782297,1774249834956,-1044.0,0.00014542,2]
[408782298,1774249834965,-621.0,0.00014542,2]
[408782299,1774249834974,-3515.0,0.00014542,2]
[408782300,1774249834983,-1261.0,0.00014542,2]
[408782301,1774249834992,-655.38335987,0.00014542,2]
[408782302,1774249835005,-559.61664013,0.00014542,2]
[408782303,1774249835014,-924.0,0.00014542,2]
[408782304,1774249835023,-105.42439311,0.00014656,2]
[408782305,1774249835034,-1157.55572261,0.00014656,2]
[408782306,1774249835043,-439.05514609,0.00014656,2]
[408782307,1774249835052,-4364.09375552,0.00014666,2]
[408782308,1774249835061,-282.24764091,0.00014706,2]
[408782309,1774249835070,-210.0,0.00014738,2]
[408782310,1774249835079,-369.16220629,0.0001478,2]
[408782311,1774249835492,-578.20924308,0.00014802,2]
[408782312,1774249835501,-529.03054196,0.00014802,2]
[408782313,1774249835511,-398.79986977,0.00014802,2]
[408782314,1774249835522,-271.78637118,0.00014802,2]
[408782315,1774249835532,-500.0,0.00014802,2]
[408782316,1774249835541,-500.0,0.00014802,2]
[408782317,1774249835551,-500.0,0.00014802,2]
[408782318,1774249835561,-500.0,0.00014802,2]
[408782319,1774249835570,-500.0,0.00014802,2]
[408782320,1774249835579,-500.0,0.00014802,2]
[408782321,1774249835588,-500.0,0.00014802,2]
[408782322,1774249835598,-500.0,0.00014802,2]
[408782323,1774249835607,-500.0,0.00014802,2]
[408782324,1774249835616,-154.86095341,0.00014802,2]
[408782325,1774249835626,-174.61919141,0.00014802,2]
[408782326,1774249835636,-500.0,0.00014802,2]
[408782327,1774249835645,-319.08991671,0.00014802,2]
[408782328,1774249835655,-500.0,0.00014802,2]
[408782329,1774249835664,-500.0,0.00014802,2]
[408782330,1774249835673,-90.80311233,0.00014802,2]
[408782331,1774249835684,-409.19688767,0.00014802,2]
[408782332,1774249835693,-198.37128699,0.00014802,2]
[408782333,1774249835702,-500.0,0.00014802,2]
[408782334,1774249835711,-500.0,0.00014802,2]
[408782335,1774249835720,-500.0,0.00014802,2]
[408782336,1774249835729,-500.0,0.00014802,2]
[408782337,1774249835738,-500.0,0.00014802,2]
[408782338,1774249835747,-500.0,0.00014802,2]
[408782339,1774249835756,-500.0,0.00014802,2]
[408782340,1774249835766,-500.0,0.00014802,2]
[408782341,1774249835775,-500.0,0.00014802,2]
[408782342,1774249835785,-500.0,0.00014802,2]
[408782343,1774249835794,-200.0,0.00014888,2]
[408782344,1774249835803,-501.0,0.00014892,2]
[408782345,1774249835812,-150.987,0.000149,2]
[408782346,1774249835821,-1262.98011572,0.00014904,2]
[408782347,1774249835831,-439.05514609,0.00014904,2]
[408782348,1774249835840,-420.0,0.00014927,2]
[408782349,1774249835849,-1680.0,0.00014982,2]
[408782350,1774249835858,-158.0,0.00015068,2]
[408782351,1774249835867,-396.76,0.00015068,2]
[408782352,1774249835876,-715.11,0.00015068,2]
[408782353,1774249835885,-345.54535172,0.00015117,2]
[408782354,1774249835895,-1262.98011572,0.00015153,2]
[408782355,1774249835905,-439.05514609,0.00015153,2]
[408782356,1774249835915,-872.85,0.000152,2]
[408782357,1774249835925,-785.45,0.000152,2]
[408782358,1774249835934,-582.99,0.000152,2]
[408782359,1774249835943,-187.78006525,0.0001535,2]
[408782360,1774249835953,-386.43979979,0.00015385,2]
[408782361,1774249835964,-1262.98011572,0.00015402,2]
[408782362,1774249835973,-439.05514609,0.00015402,2]
[408782363,1774249835985,-700.0,0.00015452,2]
[408782364,1774249835994,-816.0,0.00015456,2]
[408782365,1774249836004,-312.0,0.00015489,2]
[408782366,1774249836014,-1114.4,0.00015507,2]
[408782367,1774249836023,-816.0,0.00015521,2]
[408782368,1774249836032,-165.013173,0.00015582,7]
[408782369,1774249836042,-312.0,0.00015582,2]
[408782370,1774249836051,-1262.98011572,0.00015651,2]
[408782371,1774249836060,-439.05514609,0.00015651,2]
[408782372,1774249836069,-4364.09375552,0.00015671,2]
[408782373,1774249836078,-442.75570573,0.0001568,2]
[408782374,1774249836088,-232.955633,0.0001568,7]
[408782375,1774249836097,-184.346477,0.0001568,7]
[408782376,1774249836106,-194.777159,0.0001568,7]
[408782377,1774249836115,-1146.0,0.00015684,5]
[408782378,1774249836124,-347.535847,0.00015692,2]
[408782379,1774249836133,-354.60979428,0.00015692,2]
[408782380,1774249836143,-2274.13702832,0.00015695,2]
[408782381,1774249836152,-312.0,0.000157,2]
[408782382,1774249836161,-832.23,0.000157,2]
[408782383,1774249836173,-1190.21,0.000157,2]
[408782384,1774249836185,-463.48,0.000157,2]
[408782385,1774249836194,-4400.0,0.000157,5]
[408782386,1774249836203,-176.8247722,0.00015704,5]
[408782387,1774249836213,-900.0,0.00015726,2]
[408782388,1774249836222,-381.27861401,0.00015729,2]
[408782389,1774249836232,-396.76,0.00015753,2]
[408782390,1774249836242,-501.0,0.00015784,3]
[408782391,1774249836256,-3584.0,0.00015795,2]
[408782392,1774249836266,-800.0,0.000158,5]
[408782393,1774249836276,-6078.99510043,0.000158,2]
[408782394,1774249836287,-1000.0,0.00015836,2]
[408782395,1774249836296,-171.74889,0.0001584,2]
[408782396,1774249836306,-171.74889,0.0001584,2]
[408782397,1774249836316,-171.74889,0.0001585,2]
[408782398,1774249836325,-312.0,0.00015871,2]
[408782399,1774249836335,-500.0,0.00015872,2]
[408782400,1774249836344,-200.0,0.00015872,2]
[408782401,1774249836354,-312.0,0.00015879,2]
[408782402,1774249836364,-200.0,0.00015888,2]
[408782403,1774249836374,-1114.4,0.00015895,2]
[408782404,1774249836384,-312.0,0.00015898,2]
[408782405,1774249836394,-78545.53565056,0.000159,2]
[408782406,1774249836408,-21454.46434944,0.000159,2]
[408782407,1774249836418,-369.16220629,0.000159,2]
[408782408,1774249836428,-151.0,0.000159,2]
[408782409,1774249836437,-151.0,0.000159,2]
[408782410,1774249836447,-800.0,0.000159,5]
[408782411,1774249836456,-1262.98011572,0.000159,2]
[408782412,1774249836466,-151.0,0.000159,2]
[408782413,1774249836476,-439.05514609,0.000159,2]
[408782414,1774249836485,-1867.3253516,0.00015942,2]
[408782415,1774249836495,-2975.4083499,0.00015942,2]
[408782416,1774249836504,-3758.6321098,0.00015942,2]
[408782417,1774249836513,-161.234754,0.00015942,2]
[408782418,1774249836523,-3442.0677129,0.00015942,2]
[408782419,1774249836533,-500.0,0.00015973,2]
[408782420,1774249836542,-344.5932573,0.00015973,2]
[408782421,1774249836551,-500.42459141,0.00015973,2]
[408782422,1774249836560,-500.66468898,0.00015973,2]
[408782423,1774249836570,-500.23015738,0.00015973,2]
[408782424,1774249836579,-501.03045518,0.00015973,2]
[408782425,1774249836589,-500.51357759,0.00015973,2]
[408782426,1774249836598,-6394.93112094,0.00016,2]
[408782432,1774249838073,-1000.0,0.00013622,2]
[408782433,1774249838083,-10122.82974854,0.00016,2]
[408782434,1774249838095,-284758.2891699,0.00016,2]
[408782435,1774249838105,-268260.60484631,0.00016,2]
[408782436,1774249838116,-1148.28479263,0.00016,2]
[408782437,1774249838128,-408.86873224,0.00016,2]
[408782438,1774249838139,-92779.04452162,0.00016,2]
[408782442,1774249838194,-355.710055,0.00016,2]
[408782443,1774249838205,-18626.43092058,0.00016,2]
[408782445,1774249838216,-365809.37166595,0.00016,2]
[408782448,1774249838228,-361186.09845716,0.00016,2]
[408782449,1774249838250,-363.21098224,0.00016,2]
[408782450,1774249838265,-49990.0,0.00016,2]
[408782454,1774249840091,-2503.93083898,0.00016,2]
[408782455,1774249840147,-301.92197159,0.00016,2]
[408782456,1774249840158,-522.9232407,0.00016,2]
[408782457,1774249840551,-29184.9370734,0.00016,2]
[408782458,1774249840562,-331.79488458,0.00016,2]
[408782463,1774249840947,-2577.59261129,0.00016,2]
[408782464,1774249840959,-509.65562623,0.00016,2]
[408782485,1774249845844,-415.0,0.0001453,2]
[408782487,1774249845853,-9165.97694113,0.00016,2]
[408782490,1774249845864,-1438717.02490557,0.00016,2]
[408782491,1774249845873,-212039.16775116,0.00016,2]
[408782494,1774249845882,-500.0,0.00016,2]
[408782496,1774249845892,-142723.7398339,0.00016,2]
[408782498,1774249845901,-150.0,0.00016,2]
[408782499,1774249845911,-3437.06706382,0.00016,2]
[408782502,1774249845920,-150.0,0.00016,2]
[408782504,1774249845929,-21243.05300195,0.00016,2]
[408782506,1774249845938,-150.0,0.00016,2]
[408782508,1774249845948,-6942.44190891,0.00016,2]
[408782509,1774249845957,-35911.3759571,0.00016,2]
[408782512,1774249845968,-88918.0226084,0.00016,2]
[408782514,1774249845979,-98188.44683561,0.00016,2]
[408782521,1774249846016,-12780.18,0.00016,2]
[408782524,1774249846035,-2204.58069616,0.00016,2]
[408782526,1774249846046,-622.91755866,0.00016,2]
[408782530,1774249846069,-3899.87717719,0.00016,2]
[408782628,1774250211418,177.34,0.00011154,2]
[408782629,1774250240080,631.04029125,0.00011154,2]
[408782634,1774250937827,9847.31,9.5e-05,3]
[408782635,1774250937850,10000.0,9.5e-05,3]
[408782636,1774250937872,10000.0,9.5e-05,3]
[408782637,1774250937894,10000.0,9.5e-05,3]
[408782638,1774250937916,10000.0,9.5e-05,3]
[408782639,1774250937938,10000.0,9.5e-05,3]
[408782640,1774250938368,10000.0,9.5e-05,3]
[408782641,1774250938389,10000.0,9.5e-05,3]
[408782642,1774250938409,10000.0,9.5e-05,3]
[408782643,1774250938429,10000.0,9.5e-05,3]
[408782644,1774250938449,10000.0,9.5e-05,3]
[408782645,1774250938469,10000.0,9.5e-05,3]
[408782646,1774250938494,10000.0,9.5e-05,3]
[408782647,1774250938514,10000.0,9.5e-05,3]
[408782648,1774250938536,10000.0,9.5e-05,3]
[408782649,1774250938556,10000.0,9.5e-05,3]
[408782650,1774250938579,10000.0,9.5e-05,3]
[408782651,1774250938602,10000.0,9.5e-05,3]
[408782652,1774250938623,10000.0,9.5e-05,3]
[408782653,1774250938644,3896.12198476,9.5e-05,3]
[408782655,1774251014887,160.0,9.5e-05,3]
[408782663,1774251032036,-1200.0,0.00011153,2]
[408782664,1774251032046,-300.0,0.00011153,2]
[408782665,1774251032056,-2235.46970875,0.00011154,2]
[408782666,1774251032066,-259.20946557,0.00011154,2]
[408782667,1774251032078,-534.06656813,0.00011154,2]
[408782668,1774251032091,-392.0164969,0.00011154,2]
[408782669,1774251032103,-335.31456548,0.00011154,2]
[408782670,1774251032115,-479.39290392,0.00011154,2]
[408782671,1774251032125,-98.80522678,0.00011154,2]
[408782672,1774251032140,-2673.03763375,0.00011154,2]
[408782673,1774251032152,-1477.54713947,0.00011154,2]
[408782674,1774251032164,-150.0,0.00011154,2]
[408782675,1774251032173,-544.2454448,0.00011244,2]
[408782676,1774251032192,-390.37271931,0.00011244,2]
[408782677,1774251032203,-1701.98183589,0.00011244,2]
[408782678,1774251032213,-157.58,0.00011489,2]
[408782679,1774251032223,-1503.53,0.00011507,2]
[408782680,1774251032232,-157.58,0.00011868,2]
[408782681,1774251032241,-210.5828033,0.00012024,2]
[408782682,1774251032251,-157.58,0.00012247,2]
[408782683,1774251032260,-420.0,0.00012254,2]
[408782686,1774251032269,-1680.0,0.00012269,2]
[408782688,1774251032279,-2000.0,0.00012549,2]
[408782690,1774251032289,-160.0,0.00012625,3]
[408782692,1774251032299,-157.58,0.00012627,2]
[408782695,1774251032308,-250.0,0.00013,2]
[408782697,1774251032318,-157.58,0.00013006,2]
[408782700,1774251032328,-157.58,0.00013385,2]
[408782703,1774251032337,-587.0,0.00013464,2]
[408782706,1774251032347,-2500.0,0.00013473,2]
[408782710,1774251032356,-150.0,0.00013487,2]
[408782713,1774251032365,-486.05457882,0.00013488,2]
[408782716,1774251032375,-3051.9248512,0.00013488,2]
[408782719,1774251032384,-620.98624707,0.00013488,2]
[408782722,1774251032393,-13687.15765503,0.00013488,2]
[408782725,1774251032403,-2351.0,0.00013495,2]
[408782728,1774251032414,-150.0,0.000135,2]
[408782730,1774251032424,-2014.464,0.000135,2]
[408782732,1774251032433,-169.609,0.000135,2]
[408782735,1774251032442,-200.0,0.00013565,2]
[408782738,1774251032452,-500.0,0.00013572,2]
[408782741,1774251032461,-636.92723332,0.00013572,2]
[408782744,1774251032470,-500.0,0.00013572,2]
[408782747,1774251032479,-378.28383109,0.00013572,2]
[408782749,1774251032488,-387.48942899,0.00013572,2]
[408782751,1774251032499,-500.0,0.00013572,2]
[408782753,1774251032510,-500.0,0.00013572,2]
[408782755,1774251032524,-602.82350073,0.00013572,2]
[408782757,1774251032533,-500.0,0.00013572,2]
[408782759,1774251032542,-500.0,0.00013572,2]
[408782761,1774251032552,-500.0,0.00013572,2]
[408782763,1774251032563,-500.0,0.00013572,2]
[408782765,1774251032572,-500.0,0.00013572,2]
[408782767,1774251032581,-500.0,0.00013572,2]
[408782769,1774251032592,-500.0,0.00013572,2]
[408782771,1774251032602,-500.0,0.00013572,2]
[408782773,1774251032612,-500.0,0.00013572,2]
[408782775,1774251032621,-500.0,0.00013572,2]
[408782777,1774251032631,-500.0,0.00013572,2]
[408782779,1774251032640,-500.0,0.00013572,2]
[408782781,1774251032650,-500.0,0.00013572,2]
[408782783,1774251032660,-500.0,0.00013572,2]
[408782784,1774251032671,-500.0,0.00013572,2]
[408782785,1774251032680,-500.0,0.00013572,2]
[408782786,1774251032690,-500.0,0.00013572,2]
[408782787,1774251032699,-500.0,0.00013572,2]
[408782788,1774251032708,-500.0,0.00013572,2]
[408782789,1774251032717,-500.0,0.00013572,2]
[408782790,1774251032727,-500.0,0.00013572,2]
[408782791,1774251032736,-500.0,0.00013572,2]
[408782792,1774251032745,-500.0,0.00013572,2]
[408782793,1774251032754,-500.0,0.00013572,2]
[408782794,1774251032764,-500.0,0.00013572,2]
[408782795,1774251032773,-500.0,0.00013572,2]
[408782796,1774251032782,-500.0,0.00013572,2]
[408782797,1774251032791,-500.0,0.00013572,2]
[408782798,1774251032800,-500.0,0.00013572,2]
[408782799,1774251032810,-500.0,0.00013572,2]
[408782800,1774251032819,-500.0,0.00013572,2]
[408782801,1774251032828,-500.0,0.00013572,2]
[408782802,1774251032838,-500.0,0.00013572,2]
[408782803,1774251032847,-500.0,0.00013572,2]
[408782804,1774251032856,-500.0,0.00013572,2]
[408782805,1774251032866,-218.40608142,0.00013572,2]
[408782806,1774251032875,-500.0,0.00013572,2]
[408782807,1774251032884,-500.0,0.00013572,2]
[408782808,1774251032893,-500.0,0.00013572,2]
[408782809,1774251032903,-500.0,0.00013572,2]
[408782810,1774251032913,-500.0,0.00013572,2]
[408782811,1774251032922,-520.94927353,0.00013572,2]
[408782812,1774251032933,-500.0,0.00013572,2]
[408782813,1774251032943,-500.0,0.00013572,2]
[408782814,1774251032953,-500.0,0.00013572,2]
[408782815,1774251032963,-500.0,0.00013572,2]
[408782816,1774251032974,-500.0,0.00013572,2]
[408782817,1774251032983,-500.0,0.00013572,2]
[408782818,1774251032992,-500.0,0.00013572,2]
[408782819,1774251033001,-500.0,0.00013572,2]
[408782820,1774251033011,-500.0,0.00013572,2]
[408782821,1774251033020,-500.0,0.00013572,2]
[408782822,1774251033030,-500.0,0.00013572,2]
[408782823,1774251033039,-500.0,0.00013572,2]
[408782824,1774251033048,-500.0,0.00013572,2]
[408782825,1774251033057,-500.0,0.00013572,2]
[408782826,1774251033067,-500.0,0.00013572,2]
[408782827,1774251033075,-500.0,0.00013572,2]
[408782828,1774251033085,-500.0,0.00013572,2]
[408782829,1774251033094,-500.0,0.00013572,2]
[408782830,1774251033103,-500.0,0.00013572,2]
[408782831,1774251033112,-500.0,0.00013572,2]
[408782832,1774251033122,-171.16046212,0.00013572,2]
[408782833,1774251033131,-500.0,0.00013572,2]
[408782834,1774251033141,-500.0,0.00013572,2]
[408782835,1774251033152,-500.0,0.00013572,2]
[408782836,1774251033162,-500.0,0.00013572,2]
[408782837,1774251033171,-500.0,0.00013572,2]
[408782838,1774251033181,-500.0,0.00013572,2]
[408782839,1774251033190,-500.0,0.00013572,2]
[408782840,1774251033201,-500.0,0.00013572,2]
[408782841,1774251033211,-500.0,0.00013572,2]
[408782842,1774251033220,-202.09492736,0.00013572,2]
[408782843,1774251033230,-500.0,0.00013572,2]
[408782844,1774251033240,-500.0,0.00013572,2]
[408782845,1774251033249,-500.0,0.00013572,2]
[408782846,1774251033258,-500.0,0.00013572,2]
[408782847,1774251033268,-500.0,0.00013572,2]
[408782848,1774251033277,-500.0,0.00013572,2]
[408782849,1774251033287,-500.0,0.00013572,2]
[408782850,1774251033297,-500.0,0.00013572,2]
[408782851,1774251033306,-599.69,0.00013572,2]
[408782852,1774251033315,-503.38189689,0.00013573,2]
[408782853,1774251033324,-500.0,0.00013573,2]
[408782854,1774251033334,-500.0,0.00013573,2]
[408782855,1774251033342,-500.0,0.00013573,2]